Cogmind - Beta 11 @@@ ROGUE MODE // 2022.03.19 @ 22:06:26 Player: Andru7428 Result: Destroyed by L-31 Rogue with Katana Performance ------------- Evolutions (1) 500 Regions Visited (3) 600 Robots Destroyed (71) 355 Value Destroyed (1380) 1380 Prototype IDs (4) 80 Alien Tech Used (0) 0 Bonus (79) 79 TOTAL SCORE: 2994 Bonus ------- High Alert Combat Kills 79 Cogmind --------- Core Integrity 0/400 Matter 246/300 Energy 100/100 System Corruption 1% Temperature Cool (0) Movement Core (250) Ox4 Location -9/Materials Parts ------- > --- POWER (1) -------- (None) > --- PROPULSION (2) --- (None) > --- UTILITY (4) ------ Medium Storage Unit Advanced Visual Processing Unit > --- WEAPON (2) ------- Heavy Assault Rifle Mini Grenade Launcher > --- INVENTORY (10) --- Cooled Ion Engine Light Treads Improved Treads Improved Heat Sink Improved Heat Sink Light Armor Plating Improved EM Shotgun Improved EM Shotgun Improved EM Shotgun Improved Assault Rifle Peak State ------------ > --- POWER ------------ Light Ion Engine > --- PROPULSION ------- Improved Aluminum Leg Improved Aluminum Leg > --- UTILITY ---------- Medium Storage Unit Advanced Visual Processing Unit Light Armor Plating Light Armor Plating > --- WEAPON ----------- Improved Assault Rifle Improved Assault Rifle > --- INVENTORY -------- Light Ion Engine Improved Aluminum Leg Improved Aluminum Leg Improved Heat Sink Light Armor Plating Improved EM Shotgun Improved EM Shotgun Improved EM Shotgun Grenade Launcher Hammer [Rating: 19] Favorites ----------- Power Light Ion Engine Engine Light Ion Engine Propulsion Improved Aluminum Leg Leg Improved Aluminum Leg Utility Light Armor Plating Storage Medium Storage Unit Processor Advanced Visual Processing Unit Protection Light Armor Plating Weapon Improved Assault Rifle Energy Gun Medium Laser Ballistic Gun Improved Assault Rifle Ballistic Cannon Light Cannon Launcher Grenade Launcher Build | -11 -10 -10 -9 ------- Run | Scr Mat Min Mat Slots Evolved 2 | . . . 2 Power . | . . . . Propulsion . | . . . . Utility 2 | . . . 2 Weapon . | . . . . Parts Attached 41 | 6 5 1 29 Power 9 | 1 . 1 7 Engine 9 | 1 . 1 7 Core . | . . . . Reactor . | . . . . Propulsion 5 | 2 2 . 1 Treads . | . . . . Leg 5 | 2 2 . 1 Wheel . | . . . . Hover . | . . . . Flight . | . . . . Utility 8 | 1 1 . 6 Device . | . . . . Storage 2 | 1 . . 1 Processor 2 | . . . 2 Hackware . | . . . . Protection 4 | . 1 . 3 Artifact . | . . . . Weapon 19 | 2 2 . 15 Energy Gun 2 | 1 . . 1 Energy Cannon . | . . . . Ballistic Gun 8 | 1 . . 7 Ballistic Cannon 4 | . 2 . 2 Launcher 5 | . . . 5 Special Weapon . | . . . . Impact Weapon . | . . . . Slashing Weapon . | . . . . Piercing Weapon . | . . . . Special Melee Weapon . | . . . . Unidentified Prototypes 4 | . . . 4 Parts Lost 10 | . . 1 9 Power 3 | . . 1 2 Propulsion 2 | . . . 2 Utility 4 | . . . 4 Weapon 1 | . . . 1 Highest Loss Streak 4 | . . 1 4 To Critical Strikes . | . . . . Average Slot Usage (%) 93 | . 94 98 92 Engine 11 | . 14 12 10 Leg 23 | . 28 28 21 Storage 11 | . 14 14 11 Processor 6 | . . . 8 Protection 15 | . 8 14 18 Energy Gun 1 | . 5 . . Ballistic Gun 15 | . 5 . 19 Ballistic Cannon 7 | . 17 28 2 Naked Turns . | . . . . Heaviest Build 25 | 11 17 19 25 Greatest Support 26 | 20 26 26 26 Greatest Overweight (x) 1 | . . . 1 Average Overweight (x) . | . . . . Largest Inventory Capacity 10 | 8 8 8 10 Average Capacity 9 | 7 8 8 10 Most Carried 10 | 7 8 8 10 Average Carried 9 | 3 7 7 9 Final Capacity 10 | 8 8 8 10 Final Carried 10 | 6 8 8 10 Class Distribution -------------------- 100% | Mutant Dominant Class ---------------- Mutant | -10/Materials Mutant | -10/Mines Mutant | -9/Materials Resources | -11 -10 -10 -9 ----------- Run | Scr Mat Min Mat Matter Collected 1613 | 218 297 141 957 Remotely . | . . . . Salvage Created 1857 | . 448 240 1169 Parts 128 | . 23 14 91 Haulers Intercepted 8 | . 2 . 6 Recyclers Shooed 1 | . . . 1 Parts Field Recycled . | . . . . Retrieved Matter . | . . . . Parts Self-Destructed . | . . . . Prevented . | . . . . Kills | -11 -10 -10 -9 ------- Run | Scr Mat Min Mat Combat Hostiles Destroyed 54 | . 13 7 34 Guns 17 | . 3 . 14 Cannons 22 | . 10 7 5 AOE 15 | . . . 15 Classes Destroyed 10 | . 5 1 4 Worker 1 | . 1 . . Builder 2 | . 1 . 1 Tunneler 2 | . . . 2 Hauler 8 | . 2 . 6 Recycler 2 | . . 1 1 Watcher 2 | . . . 2 Swarmer 28 | . 6 3 19 Grunt 17 | . 7 4 6 Protector 1 | . . . 1 Sentry 8 | . . . 8 Best Kill Streak 5 | . 4 5 4 Combat Bots Only 4 | . 3 3 4 Max Kills in Single Turn 3 | . 2 1 3 Gunslinging 1 | . . . 1 Exploded 3 | . . . 3 Melee . | . . . . Uniques/NPCs Destroyed . | . . . . Combat | -11 -10 -10 -9 -------- Run | Scr Mat Min Mat Damage Taken 2027 | . 195 315 1517 Core 551 | . 67 57 427 Absorbed by Shields . | . . . . Core Remaining (%) 75 | 100 . 50 . Volleys Fired 156 | . 30 17 109 Largest 2 | . 2 2 2 Hottest 70 | . 70 70 70 Shots Fired 304 | . 60 34 210 Gun 180 | . 10 . 170 Cannon 116 | . 50 34 32 Launcher 8 | . . . 8 Special . | . . . . Kinetic 291 | . 55 34 202 Thermal 5 | . 5 . . Explosive 8 | . . . 8 Electromagnetic . | . . . . Robot Hit Streak 23 | . 6 7 23 Robot Miss Streak 5 | . 4 5 2 Penetration Max . | . . . . Secondary Targets 1 | . . . 1 Max Gunslinging Chain 1 | . . . 1 Shots Hit Robots 203 | . 27 19 157 Core Hits 93 | . 18 10 65 Critical Kills . | . . . . Critical Parts Destroyed 2 | . . . 2 Critical Strikes 3 | . . . 3 Destroy 2 | . . . 2 Blast 1 | . . . 1 Melee Attacks . | . . . . Impact . | . . . . Slashing . | . . . . Piercing . | . . . . Sneak Attacks . | . . . . Combat Hostiles . | . . . . Follow-up Attacks . | . . . . Damage Inflicted 4243 | . 496 388 3359 Guns 2041 | . 51 . 1990 Cannons 1195 | . 445 388 362 Explosions 1006 | . . . 1006 Melee . | . . . . Ramming 1 | . . . 1 Kinetic 3199 | . 459 388 2352 Thermal 37 | . 37 . . Explosive 1006 | . . . 1006 Electromagnetic . | . . . . Impact . | . . . . Slashing . | . . . . Piercing . | . . . . Highest Corruption 1 | . . . 1 Average Corruption 1 | . . . 1 Corruption Purged . | . . . . Corruption Blocked . | . . . . Effects 12 | . . . 12 Message Errors 2 | . . . 2 Matter Fused 7 | . . . 7 Heat Flow Errors 2 | . . . 2 Data Loss (minor) 1 | . . . 1 Overload Shots . | . . . . Overflow Damage 7 | . . 2 5 Projectiles 2 | . . 2 . Explosions 5 | . . . 5 Melee . | . . . . Knockbacks 12 | . 2 2 8 Impact . | . . . . Kinetic 11 | . 2 2 7 Secondary 1 | . . . 1 Self-Inflicted Damage 200 | . . . 200 Shots 5 | . . . 5 Rammed . | . . . . Targets Rammed 1 | . . . 1 Kicked 1 | . . . 1 Crushed . | . . . . Highest Temperature 223 | . 132 223 176 Average Temperature 53 | . 43 74 50 Received Heat Transfer 552 | . 48 105 399 Siege Activations . | . . . . Robots Corrupted . | . . . . Combat Hostiles . | . . . . Parts Fried . | . . . . Impact Corruptions . | . . . . Robots Melted . | . . . . Combat Hostiles . | . . . . Parts Melted . | . . . . Heat Transferred 111 | . 111 . . Parts Sabotaged . | . . . . Parts Stolen . | . . . . Parts Stripped . | . . . . Power Chain Reactions . | . . . . Missiles Intercepted . | . . . . Alert | -11 -10 -10 -9 ------- Run | Scr Mat Min Mat Peak Influence 665 | . 257 265 665 Initial 103 | . . 100 103 Average 246 | . 87 212 312 Maximum Alert Level 2 | . 1 1 2 Low Security (%) 37 | 100 82 38 19 Level 1 48 | . 17 61 60 Level 2 13 | . . . 20 Level 3 . | . . . . Level 4 . | . . . . Level 5 . | . . . . High Security . | . . . . Max Security . | . . . . Squads Dispatched 3 | . 2 . 1 Investigation 1 | . 1 . . Extermination . | . . . . Reinforcement 1 | . 1 . . Assault 1 | . . . 1 Garrison . | . . . . Intercept . | . . . . Searches Triggered . | . . . . Construction Impeded . | . . . . Haulers Reinforced . | . . . . Active Scanning Responses . | . . . . Cargo Convoy Interrupts . | . . . . Stealth | -11 -10 -10 -9 --------- Run | Scr Mat Min Mat Distress Signals 3 | . 2 . 1 Communications Jammed . | . . . . Distress Signals . | . . . . Times Spotted 88 | . 24 9 55 Peak Tracking Total 5 | . 4 3 5 Tactical Retreats 1 | . . . 1 Traps | -11 -10 -10 -9 ------- Run | Scr Mat Min Mat Traps Triggered 2 | . 1 . 1 Indirectly . | . . . . Trap Hack Attempts . | . . . . Triggered . | . . . . Disarmed . | . . . . Reprogrammed . | . . . . Reused . | . . . . Traps Extracted . | . . . . Installed . | . . . . Triggered . | . . . . Machines | -11 -10 -10 -9 ---------- Run | Scr Mat Min Mat Machines Disabled . | . . . . Max in Single Turn . | . . . . Machines Sabotaged . | . . . . Garrisons Compromised . | . . . . Overloaded Fab Kills . | . . . . Hacking | -11 -10 -10 -9 --------- Run | Scr Mat Min Mat Machines Accessed 9 | . 5 . 4 Terminals 8 | . 4 . 4 Fabricators . | . . . . Repair Stations . | . . . . Recycling Units 1 | . 1 . . Scanalyzers . | . . . . Garrison Access . | . . . . Total Hacks 25 | . 11 . 14 Successful 14 | . 8 . 6 Failed 10 | . 2 . 8 Catastrophic 1 | . . . 1 Database Lockouts 1 | . 1 . . Manual 11 | . 5 . 6 Terminals 24 | . 10 . 14 Fabricators . | . . . . Repair Stations . | . . . . Recycling Units 1 | . 1 . . Scanalyzers . | . . . . Garrison Access . | . . . . Terminal Hacks 13 | . 7 . 6 Record 2 | . 2 . . Robot Analysis 3 | . 1 . 2 Alert Level 2 | . 1 . 1 Unreport Threat 1 | . . . 1 Locate Traps 2 | . 1 . 1 Hauler Manifests 1 | . 1 . . Zone Layout 2 | . 1 . 1 Fabricator Hacks . | . . . . Repair Station Hacks . | . . . . Recycling Unit Hacks 1 | . 1 . . Report Inventory 1 | . 1 . . Scanalyzer . | . . . . Garrison Access Hacks . | . . . . Unauthorized Hacks . | . . . . Terminals . | . . . . Fabricators . | . . . . Repair Stations . | . . . . Recycling Units . | . . . . Scanalyzers . | . . . . Garrison Access . | . . . . Data Cores Recovered . | . . . . Used . | . . . . Hacking Detections 5 | . 1 . 4 Full Trace Events . | . . . . Feedback Events . | . . . . Feedback Blocked . | . . . . Robot Schematics Acquired . | . . . . Robots Built . | . . . . Authchips . | . . . . Time . | . . . . Total Robot Build Rating . | . . . . Part Schematics Acquired . | . . . . Parts Built . | . . . . Authchips . | . . . . Time . | . . . . Total Part Build Rating . | . . . . Parts Repaired . | . . . . Time . | . . . . Parts Recycled . | . . . . Recycled Matter . | . . . . Retrieved Matter . | . . . . Retrieved Components . | . . . . Parts Scanalyzed . | . . . . Part Schematics Acquired . | . . . . Parts Damaged . | . . . . Bothacking | -11 -10 -10 -9 ------------ Run | Scr Mat Min Mat Used RIF Installer . | . . . . Robots Hacked . | . . . . Non-combat . | . . . . Combat . | . . . . Robot Hacks Applied . | . . . . Relay Couplers Released . | . . . . Fabnet Peak Effective % . | . . . . Robots Rewired . | . . . . Allies Hacked . | . . . . Hacks Repelled . | . . . . Allies | -11 -10 -10 -9 -------- Run | Scr Mat Min Mat Total Allies . | . . . . Largest Group . | . . . . Highest-Rated Group . | . . . . Highest-Rated Ally . | . . . . Total Orders . | . . . . Ally Attacks . | . . . . Total Damage . | . . . . Kills . | . . . . Allies Corrupted . | . . . . Allies Melted . | . . . . Intel | -11 -10 -10 -9 ------- Run | Scr Mat Min Mat Robot Analysis Total 3 | . 1 . 2 Derelict Logs Recovered . | . . . . Drone Launches . | . . . . Drone Recoveries . | . . . . Exploration | -11 -10 -10 -9 ------------- Run | Scr Mat Min Mat Turns Passed 2991 | 59 733 149 2050 Spaces Moved 1827 | 40 491 62 1234 Core 6 | 6 . . . Treads . | . . . . Legs 1821 | 34 491 62 1234 Wheels . | . . . . Hover . | . . . . Flight . | . . . . Fastest Speed 50 | 50 120 120 120 Average Speed 122 | 109 120 120 123 Slowest Speed 190 | 120 120 120 190 Overloaded Moves . | . . . . Propulsion Burnouts . | . . . . Robots Hopped . | . . . . Cave-ins Triggered . | . . . . Exploration Rate (%) 41 | 3 82 11 71 Regions Visited 3 Branch Regions 1 Pre-discovered Areas . | . . . . Known Exits Taken . | . . . . Unknown Exits Taken 3 | 1 1 1 . Scrap Searched . | . . . . Spaces Dug . | . . . . Terrain Destroyed 55 | . . . 55 Melee . | . . . . Projectile . | . . . . AOE 55 | . . . 55 Terrain Rammed . | . . . . Walls Destroyed . | . . . . Machines Disabled . | . . . . Actions | -11 -10 -10 -9 --------- Run | Scr Mat Min Mat Total 2287 | 52 579 102 1554 Wait 200 | . 38 22 140 Move 1824 | 39 490 61 1234 Hop . | . . . . Pick Up 33 | 7 7 1 18 Fast Attach 17 | 5 3 . 9 Attach 6 | 1 . 1 4 Detach 3 | . . . 3 Swap 18 | . 2 . 16 Drop 29 | . 9 . 20 Fire 156 | . 30 17 109 Melee . | . . . . Ram . | . . . . Kick 1 | . . . 1 Crush . | . . . . Escape Stasis . | . . . . Rewire . | . . . . Trap . | . . . . Miscellaneous . | . . . . Route ------- -11/Scrapyard -10/Materials (discovered 4 exits: *Mat x3 / [*Min]) -10/Mines -9/Materials (discovered 7 exits: [*Mat x3] / [*Min x2] / [*Sto x2]) History --------- Turn | Location | Event 3 | -11/Scrapyard | Discovered new exit (range 15) 60 | -11/Scrapyard | Entered Materials 180 | -10/Materials | Discovered new exit (range 8) 301 | -10/Materials | Discovered new exit (range 3) 311 | -10/Materials | Build established: Mutant 466 | -10/Materials | Discovered new exit (range 9) 617 | -10/Materials | Central database locked down 664 | -10/Materials | Discovered new exit (range 16) 793 | -10/Materials | Entered Mines 930 | -10/Mines | Discovered new exit (range 6) 932 | -10/Mines | Assembled infested the area 937 | -10/Mines | Assisted by a Guerilla fighting off Assembled 942 | -10/Mines | Entered Materials 942 | -9/Materials | Evolved 2 slots: Utility x2 945 | -9/Materials | Discovered new exit (range 13) 1162 | -9/Materials | Discovered new exit (range 14) 1287 | -9/Materials | Discovered new exit (range 14) 1309 | -9/Materials | Discovered new exit (range 12) 2205 | -9/Materials | Discovered new exit (range 8) 2275 | -9/Materials | Discovered new exit (range 14) 2743 | -9/Materials | Discovered new exit (range 3) 2942 | -9/Materials | First assault squad dispatched 2982 | -9/Materials | Core integrity fell below 50% 2991 | -9/Materials | Core integrity fell below 20% 2992 | -9/Materials | Destroyed by L-31 Rogue with Katana Last Messages --------------- 02854_ Acquired 34 matter. 02858_ Dropped Imp. Assault Rifle. 02859_ Acquired Hvy. Assault Rifle. 02860_ Acquired 10 matter. 02905_ System corrupted: Heat flow error (+173). 02942_ ALERT: Significant disruption in Zone 6U, assault force dispatched. 02971_ C-30 ARC bursts open, deploying its payload. 02971_ G-47 Trooper unfolds itself. 02971_ L-31 Rogue unfolds itself. 02971_ G-34 Mercenary unfolds itself. 02971_ I-25 Savior unfolds itself. 02972_ Ion Engine destroyed. 02979_ Lgt. Armor Plating destroyed. 02985_ Imp. Aluminum Leg destroyed. 02986_ G-34 Mercenary destroyed. 02988_ Targeting Computer destroyed. 02988_ Destroyed Targeting Computer. 02988_ I-25 Savior destroyed. 02991_ The unstable cave ceiling collapses. 02992_ G-47 Trooper destroyed. Map ----- +----------------------------------------------------+ | * #!! """ # #?# """ ""T | | | #!! """ + ### """ """ | | ##+################# #!! """ # + | | ##### ??????????????# # + #########+## | | #???# #????????????# ########## #?????? [ | | #???# #????????????# #?????#####+####?? | | #???# """ #????????????#!#?????# % *# " """"" | | #???# """ #????????????# #?????# T!# """""""" | | #???# """ #????????????#!#?????# ! # """ """ | | #???# #????????????#=#?????# [[########## | | ###########???########## #?????# %#????????? | | ???????# # #?????# """*#????????? | | ?#??????# # t#?????# """!#? ??##### | | " """ #??????# """ # #?????# """ #? ?? # | | """""" #??????# """ ]+ ####### ## ? # | | """ " #??????# """ # # ############ ?"" # | | #??????# [# w# #??????? ## """ # | | ########??????######## # #????? ## """ # | | ??????????????# ?# # #???""""" ## """ # | | ??????????????# """ # # #??"""""" ## """ # | | ??????????????# "R" # # #?""""""" ## # | | ??????????????# " " # """"""" ## # | | ??????????????# # """"""" ## # | | ??????????????# # %## = # | | ???????????######### %! ##########+######+### | | ???????????# ### @ %% % % | | ???????????# ] + w l % | | ???????????# ! ### | | ####???????# #?# ## ######### ########## | | #???????# #?#####?###???????# #????????# | | +???????# #########????????## ##???????? | | #???????#####+## ########## #???????? | | ## #?????????# #???????? | | ???#?????????# < #???????? | | ?????????????# #???????? | | ?????????????# ## #######+## ######### | | ?????????????# ## "|"!" #???? ####### | | ?????????????# ##""|"!""#?? "" #?????# | | ?????????????# ##########?# ""S #?????# | | ?????????????# #??????????# "" #?????# ##### | | ?????????????# ???????????# #?????# # | | ????????????? ???????????# #?????# # | | ????????????? ????????????#########???# # | | ???????????? ?????????????# #???# # | | ????????????" ?????????????# [[[ =##??# # | | ????????????" ?????????????# [[[ ???# # ? | | ????????????? ?????????????# [[ #???# # ? | | ??????????????????????????????# #???# # ?? | | ???????????????????????????????? ! ????# # ?? | | ???????????????????????????#######"####### ##??? | +----------------------------------------------------+ Best States ------------- Heat Dissipation 28 Energy Generation 10 Energy Capacity 250 Matter Stores 300 Matter Capacity 300 Sight Range 20 Terrain Scan Density 10 Armor Coverage 300 Evasion (%) 55 Targeting Accuracy 5 Item Schematics ----------------- None Robot Schematics ------------------ None Fabricated ------------ Nothing Alien Tech Used ----------------- None Achievements -------------- None Challenges ------------ None Game ------ Seed CoilPhysicsSegregator Manual? 0 Play Time 00:35:35 Cumulative 154.9 hours Start 2022.03.19 @ 21:30:19 End 2022.03.19 @ 22:06:26 Sessions 1 Manual Loads 0 Difficulty Rogue Special Mode None Game No. 112 Rogue 112 Adventurer 0 Explorer 0 Win Type - Total 3 Types 3/0/0/0/0/0/0/0/0 Lore% 61 Gallery% 70 Achievement% 58 Wizard Run 0 Options --------- ASCII 0 Keyboard 1 Movement Numpad Keybinds 0 Fullscreen 2 Font 18/Smallcaps Map View 76x50 Tactical HUD 1 Map Filters NONE Filters NONE Steam 1 RUN: 81285ed8-42c6-4c45-97ec-96c876911611